Workbook

Sheet Q3 BS
D1: 2012-12-31 | E1: 2011-12-31
B2: ASSETS
B3: Current Assets
C4: Cash and Cash Equivalents | D4: 8,000 | E4: 4,600
C5: Accounts Receivables | D5: 4,000 | E5: 2,300
C6: Allowance for Doubtful Accounts | D6: -600 | E6: -300
C7: Inventory | D7: 600 | E7: 200
B8: Total Current Assets | D8: =SUM(D4:D7) -> 12,000 | E8: =SUM(E4:E7) -> 6,800
B10: Property, Plant, and Equipment
B11: Property, Plant and Equipment | D11: 3,000 | E11: 2,200
B12: Less: Accumulated Depreciation | D12: -1,210 | E12: -1,100
B13: Total Property, Plant, and Equipment | D13: =SUM(D11:D12) -> 1,790 | E13: =SUM(E11:E12) -> 1,100
B15: Total Assets | D15: =D8+D13 -> 13,790 | E15: =E8+E13 -> 7,900
B17: LIABILITIES
B18: Current Liabilities
C19: Accounts Payable | D19: 750 | E19: 420
C20: Dividends Payable | D20: 500 | E20: 0
C21: Other Current Liabilities | D21: 600 | E21: 200
B22: Total Current Liabilities | D22: =SUM(D19:D21) -> 1850 | E22: =SUM(E19:E21) -> 620
B24: Long-term Liabilities
C25: Loan | D25: 3,000 | E25: 400
B26: Total Long-term Liabilities | D26: =SUM(D25) -> 3,000 | E26: =SUM(E25) -> 400
B28: Total Liabilities | D28: =D22+D26 -> 4,850 | E28: =E22+E26 -> 1020
B30: SHAREHOLDER’S EQUITY
B31: Common Stock ($1 par) | D31: 460 | E31: 260
B32: Paid-in Capital | D32: 5,000 | E32: 3,200
B33: Retained Earnings | D33: =1060+2420 -> 3,480 | E33: =1000+2420 -> 3,420
B34: Total Stockholder Equity | D34: =SUM(D31:D33) -> 8940 | E34: =SUM(E31:E33) -> 6880
B36: Total Liabilities & Stockholders’ Equity | D36: =D28+D34 -> 13,790 | E36: =E28+E34 -> 7,900
C37: Check | D37: =D15-D36 -> 0 | E37: =E15-E36 -> 0
